fUST/lending_fUST_20240502
["ID","MTS","AMOUNT","RATE_DAILY","PERIOD"]
[325213555,1714590646542,-500.0,0.00053424,120]
[325213556,1714590646551,-500.0,0.00053424,120]
[325213558,1714590646561,-300.0,0.00053424,7]
[325213559,1714590646570,-528.52,0.00053424,120]
[325213560,1714590646579,-500.0,0.00053424,120]
[325213561,1714590646591,-500.0,0.00053424,120]
[325213562,1714590646600,-500.0,0.00053424,120]
[325213564,1714590646610,-500.0,0.00053424,120]
[325213565,1714590646619,-500.0,0.00053424,120]
[325213567,1714590646629,-500.0,0.00053424,120]
[325213569,1714590646638,-500.0,0.00053424,3]
[325213570,1714590646647,-500.0,0.00053424,120]
[325213572,1714590646657,-500.0,0.00053424,120]
[325213573,1714590646667,-501.11798054,0.00053424,120]
[325213574,1714590646676,-3195.0,0.00053424,120]
[325213575,1714590646685,-500.0,0.00053424,120]
[325213576,1714590646695,-906.16,0.00053424,120]
[325213577,1714590646704,-550.08,0.00053424,120]
[325213578,1714590646714,-1114.78,0.00053424,120]
[325213579,1714590646723,-500.0,0.00053424,120]
[325213581,1714590646732,-642.27581446,0.00053424,120]
[325213583,1714590646742,-3211.91,0.00053424,120]
[325213585,1714590646752,-500.0,0.00053424,120]
[325213587,1714590646761,-500.0,0.00053424,120]
[325213589,1714590646770,-292.9119877,0.00053424,120]
[325213590,1714590646780,-500.0,0.00053424,120]
[325213593,1714590646790,-500.0,0.00053424,120]
[325213595,1714590646799,-500.0,0.00053424,120]
[325213597,1714590646809,-746.4,0.00053424,120]
[325213598,1714590646818,-500.0,0.00053424,120]
[325213599,1714590646828,-500.0,0.00053424,120]
[325213600,1714590646840,-511.17084469,0.00053424,120]
[325213601,1714590646849,-500.0,0.00053424,120]
[325213602,1714590646858,-616.87,0.00053424,120]
[325213603,1714590646867,-500.0,0.00053424,120]
[325213604,1714590646878,-500.0,0.00053424,120]
[325213605,1714590646888,-500.0,0.00053424,120]
[325213606,1714590646898,-500.0,0.00053424,120]
[325213607,1714590646907,-693.46,0.00053424,120]
[325213608,1714590646916,-769.33,0.00053424,120]
[325213609,1714590646926,-500.0,0.00053424,120]
[325213610,1714590646936,-500.0,0.00053424,120]
[325213611,1714590646946,-500.0,0.00053424,120]
[325213612,1714590646955,-500.0,0.00053424,120]
[325213613,1714590646965,-500.0,0.00053424,120]
[325213614,1714590646974,-500.0,0.00053424,120]
[325213615,1714590646983,-500.00049602,0.00053424,120]
[325213616,1714590646992,-500.0,0.00053424,120]
[325213617,1714590647002,-500.0,0.00053424,120]
[325213618,1714590647011,-500.0,0.00053424,120]
[325213619,1714590647022,-319.84419381,0.00053424,120]
[325213620,1714590647031,-500.0,0.00053424,120]
[325213621,1714590647041,-710.14,0.00053424,120]
[325213622,1714590647051,-500.0,0.00053424,120]
[325213623,1714590647061,-500.0,0.00053424,120]
[325213624,1714590647071,-500.0,0.00053424,120]
[325213625,1714590647080,-500.0,0.00053424,120]
[325213626,1714590647092,-500.0,0.00053424,120]
[325213627,1714590647102,-687.72,0.00053424,120]
[325213628,1714590647112,-500.0,0.00053424,120]
[325213629,1714590647122,-500.0,0.00053424,120]
[325213630,1714590647132,-600.0,0.00053424,120]
[325213631,1714590647142,-1028.82,0.00053424,120]
[325213632,1714590647152,-865.76,0.00053424,120]
[325213633,1714590647162,-500.0,0.00053424,120]
[325213634,1714590647172,-500.0,0.00053424,120]
[325213635,1714590647181,-500.0,0.00053424,120]
[325213636,1714590647190,-500.0,0.00053424,120]
[325213637,1714590647200,-452.94313312,0.00053424,120]
[325213638,1714590647209,-500.0,0.00053424,120]
[325213639,1714590647221,-500.0,0.00053424,120]
[325213640,1714590647231,-1010.85,0.00053424,120]
[325213641,1714590647240,-500.0,0.00053424,120]
[325213642,1714590647249,-10948.05,0.00053424,120]
[325213643,1714590647260,-416.0092392,0.00053424,120]
[325213644,1714590647269,-500.0,0.00053424,120]
[325213645,1714590647278,-500.0,0.00053424,120]
[325213646,1714590647288,-1009.36,0.00053424,120]
[325213647,1714590647297,-644.36,0.00053424,120]
[325213648,1714590647306,-500.0,0.00053424,120]
[325213649,1714590647315,-500.0,0.00053424,120]
[325213650,1714590647325,-500.0,0.00053424,120]
[325213651,1714590647342,-1003.72,0.00053424,120]
[325213652,1714590647351,-1065.34,0.00053424,120]
[325213653,1714590647360,-500.0,0.00053424,120]
[325213654,1714590647371,-500.0,0.00053424,120]
[325213655,1714590647380,-496.59077021,0.00053424,120]
[325213656,1714590647389,-500.0,0.00053424,120]
[325213657,1714590647399,-1017.66,0.00053424,120]
[325213658,1714590647408,-837.17,0.00053424,2]
[325213659,1714590647418,-698.14,0.00053424,120]
[325213660,1714590647427,-835.23,0.00053424,120]
[325213661,1714590647437,-500.0,0.00053424,120]
[325213662,1714590647446,-500.0,0.00053424,120]
[325213663,1714590647455,-900.9,0.00053424,120]
[325213664,1714590647465,-394.26160973,0.00053424,120]
[325213665,1714590647474,-884.74,0.00053424,120]
[325213666,1714590647484,-647.64,0.00053424,120]
[325213667,1714590647494,-500.0,0.00053424,120]
[325213668,1714590647503,-500.0,0.00053424,120]
[325213669,1714590647512,-500.0,0.00053424,120]
[325213670,1714590647522,-500.0,0.00053424,5]
[325213671,1714590647531,-642.39,0.00053424,120]
[325213672,1714590647540,-634.81599493,0.00053424,120]
[325213673,1714590647549,-408.77883262,0.00053424,120]
[325213674,1714590647559,-500.0,0.00053424,120]
[325213675,1714590647570,-7693.02,0.00053424,120]
[325213676,1714590647579,-500.0,0.00053424,120]
[325213677,1714590647591,-500.0,0.00053424,120]
[325213678,1714590647601,-500.0,0.00053424,120]
[325213679,1714590647610,-500.0,0.00053424,120]
[325213680,1714590647620,-500.0,0.00053424,120]
[325213681,1714590647629,-500.0,0.00053424,120]
[325213682,1714590647639,-803.62,0.00053424,120]
[325213683,1714590647648,-841.27,0.00053424,120]
[325213684,1714590647658,-1812.87,0.00053424,120]
[325213685,1714590647667,-500.0,0.00053424,120]
[325213686,1714590647676,-500.0,0.00053424,120]
[325213687,1714590647686,-500.0,0.00053424,120]
[325213688,1714590647695,-838.92,0.00053424,120]
[325213689,1714590647704,-500.0,0.00053424,120]
[325213690,1714590647713,-500.0,0.00053424,120]
[325213691,1714590647722,-500.0,0.00053424,120]
[325213692,1714590647731,-1089.88,0.00053424,21]
[325213693,1714590647740,-500.0,0.00053424,120]
[325213694,1714590647750,-500.0,0.00053424,120]
[325213695,1714590647759,-500.0,0.00053424,120]
[325213696,1714590647769,-1408.48,0.00053424,120]
[325213697,1714590647778,-500.0,0.00053424,120]
[325213698,1714590647787,-500.0,0.00053424,120]
[325213699,1714590647797,-500.0,0.00053424,120]
[325213700,1714590647807,-630.35,0.00053424,120]
[325213701,1714590647816,-500.0,0.00053424,120]
[325213702,1714590647825,-687.42,0.00053424,120]
[325213703,1714590647836,-1030.87,0.00053424,120]
[325213704,1714590647846,-3633.8,0.00053424,120]
[325213705,1714590647855,-2134.0,0.00053424,2]
[325213706,1714590647865,-500.0,0.00053424,60]
[325213707,1714590647874,-778.92,0.00053424,7]
[325213708,1714590647883,-500.0,0.00053424,120]
[325213709,1714590647892,-500.0,0.00053424,120]
[325213710,1714590647902,-1916.12,0.00053424,120]
[325213711,1714590647912,-558.33,0.00053424,120]
[325213712,1714590647921,-500.0,0.00053424,120]
[325213713,1714590647931,-571.93,0.00053424,120]
[325213714,1714590647940,-544.83,0.00053424,120]
[325213715,1714590647950,-618.34062647,0.00053424,120]
[325213716,1714590647960,-977.94,0.00053424,120]
[325213717,1714590647969,-500.0,0.00053424,120]
[325213718,1714590647978,-505.0,0.00053424,120]
[325213719,1714590647988,-1196.74,0.00053424,120]
[325213720,1714590647997,-221.12538202,0.00053424,120]
[325213721,1714590648007,-500.0,0.00053424,120]
[325213722,1714590648017,-1032.6,0.00053424,120]
[325213723,1714590648027,-501.26063707,0.00053424,120]
[325213724,1714590648036,-500.0,0.00053424,120]
[325213725,1714590648046,-1059.26,0.00053424,120]
[325213726,1714590648055,-533.59,0.00053424,120]
[325213727,1714590648065,-500.0,0.00053424,120]
[325213728,1714590648075,-707.13,0.00053424,120]
[325213729,1714590648085,-500.0,0.00053424,120]
[325213730,1714590648095,-801.68,0.00053424,120]
[325213731,1714590648104,-762.3,0.00053424,120]
[325213732,1714590648113,-502.71,0.00053424,120]
[325213733,1714590648123,-500.0,0.00053424,120]
[325213734,1714590648132,-500.0,0.00053424,120]
[325213735,1714590648143,-500.0,0.00053424,120]
[325213736,1714590648152,-500.0,0.00053424,120]
[325213737,1714590648161,-500.0,0.00053424,120]
[325213738,1714590648170,-500.0,0.00053424,120]
[325213739,1714590648180,-454.16844418,0.00053424,120]
[325213740,1714590648189,-230.0,0.00053424,120]
[325213741,1714590648198,-500.0,0.00053424,120]
[325213742,1714590648207,-500.0,0.00053424,120]
[325213743,1714590648218,-500.0,0.00053424,120]
[325213744,1714590648227,-5923.71,0.00053424,120]
[325213745,1714590648236,-4672.9,0.00053424,120]
[325213746,1714590648246,-655.29,0.00053424,120]
[325213747,1714590648255,-14308.02,0.00053424,120]
[325213748,1714590648265,-1192.0,0.00053424,120]
[325213749,1714590648275,-540.12,0.00053424,120]
[325213750,1714590648284,-500.0,0.00053424,120]
[325213751,1714590648293,-500.0,0.00053424,120]
[325213752,1714590648303,-542.97,0.00053424,120]
[325213753,1714590648312,-376.85810648,0.00053424,120]
[325213754,1714590648321,-500.0,0.00053424,120]
[325213755,1714590648332,-500.0,0.00053424,120]
[325213756,1714590648347,-938.23,0.00053424,120]
[325213757,1714590648357,-500.0,0.00053424,120]
[325213758,1714590648367,-500.0,0.00053424,120]
[325213759,1714590648377,-500.0,0.00053424,120]
[325213760,1714590648387,-675.97,0.00053424,120]
[325213761,1714590648397,-500.0,0.00053424,120]
[325213762,1714590648407,-500.0,0.00053424,120]
[325213763,1714590648418,-2214.82,0.00053424,120]
[325213764,1714590648470,-1163.11,0.00053424,120]
[325213765,1714590648479,-873.13,0.00053424,120]
[325213766,1714590648489,-724.44,0.00053424,120]
[325213767,1714590648498,-500.0,0.00053424,120]
[325213768,1714590648507,-500.0,0.00053424,120]
[325213769,1714590648517,-1552.37,0.00053424,30]
[325213770,1714590648526,-572.79337958,0.00053424,120]
[325213771,1714590648536,-500.0,0.00053424,120]
[325213772,1714590648545,-2956.14,0.00053424,120]
[325213773,1714590648554,-500.0,0.00053424,120]
[325213774,1714590648563,-563.88,0.00053424,120]
[325213775,1714590648572,-500.0,0.00053424,120]
[325213776,1714590648581,-521.64,0.00053424,120]
[325213777,1714590648596,-500.0,0.00053424,120]
[325213778,1714590648605,-801.18,0.00053424,120]
[325213779,1714590648614,-1957.91,0.00053424,120]
[325213780,1714590648622,-1098.11,0.00053424,120]
[325213781,1714590648631,-500.0,0.00053424,120]
[325213782,1714590648640,-500.0,0.00053424,120]
[325213783,1714590648649,-2177.83,0.00053424,120]
[325213784,1714590648658,-500.0,0.00053424,120]
[325213785,1714590648668,-500.0,0.00053424,120]
[325213786,1714590648677,-500.0,0.00053424,120]
[325213787,1714590648686,-500.0,0.00053424,120]
[325213788,1714590648695,-500.0,0.00053424,120]
[325213789,1714590648704,-640.21,0.00053424,120]
[325213790,1714590648714,-2885.13,0.00053424,120]
[325213791,1714590648723,-500.0,0.00053424,120]
[325213792,1714590648732,-500.0,0.00053424,120]
[325213793,1714590648741,-500.0,0.00053424,120]
[325213794,1714590648750,-385.46983335,0.00053424,120]
[325213795,1714590648759,-500.0,0.00053424,30]
[325213796,1714590648769,-10000.0,0.00053456,120]
[325213797,1714590648779,-3401.5134236,0.00053945,120]
[325213798,1714590648788,-500.0,0.00053972,120]
[325213799,1714590648798,-500.0,0.00053972,120]
[325213800,1714590648807,-500.0,0.00053972,120]
[325213801,1714590648817,-591.11,0.00053972,120]
[325213802,1714590648826,-500.0,0.00053972,120]
[325213803,1714590648836,-525.92,0.00053972,120]
[325213804,1714590648845,-500.0,0.00053972,120]
[325213805,1714590648854,-500.0,0.00053972,120]
[325213806,1714590648864,-500.0,0.00053972,120]
[325213807,1714590648874,-500.0,0.00053972,120]
[325213808,1714590648883,-500.0,0.00053972,120]
[325213809,1714590648892,-500.0,0.00053972,120]
[325213810,1714590648901,-500.0,0.00053972,120]
[325213811,1714590648911,-500.0,0.00053972,120]
[325213812,1714590648920,-500.0,0.00053972,120]
[325213813,1714590648930,-500.0,0.00053972,60]
[325213814,1714590648939,-500.0,0.00053972,120]
[325213815,1714590648948,-536.52,0.00053972,120]
[325213816,1714590648958,-500.0,0.00053972,120]
[325213817,1714590648967,-500.0,0.00053972,120]
[325213818,1714590648977,-500.0,0.00053972,120]
[325213819,1714590648987,-500.0,0.00053972,120]
[325213820,1714590648996,-823.13,0.00053972,120]
[325213821,1714590649006,-500.0,0.00053972,120]
[325213822,1714590649015,-500.0,0.00053972,120]
[325213823,1714590649025,-500.0,0.00053972,120]
[325213824,1714590649035,-970.01,0.00053972,120]
[325213825,1714590649045,-500.0,0.00053972,120]
[325213826,1714590649055,-830.41,0.00053972,120]
[325213827,1714590649065,-500.0,0.00053972,120]
[325213828,1714590649075,-1000.6,0.00053972,120]
[325213829,1714590649089,-500.0,0.00053972,120]
[325213830,1714590649108,-516.07,0.00053972,120]
[325213831,1714590649118,-500.0,0.00053972,120]
[325213832,1714590649128,-508.08,0.00053972,120]
[325213833,1714590649137,-500.0,0.00053972,120]
[325213834,1714590649147,-500.0,0.00053972,120]
[325213835,1714590649156,-500.0,0.00053972,120]
[325213836,1714590649165,-500.0,0.00053972,120]
[325213837,1714590649174,-500.0,0.00053972,120]
[325213838,1714590649184,-500.0,0.00053972,120]
[325213839,1714590649193,-500.0,0.00053972,120]
[325213840,1714590649203,-500.0,0.00053972,120]
[325213841,1714590649212,-500.0,0.00053972,120]
[325213842,1714590649221,-595.6,0.00053972,120]
[325213843,1714590649231,-500.0,0.00053972,120]
[325213844,1714590649240,-770.87,0.00053972,120]
[325213845,1714590649249,-570.28,0.00053972,120]
[325213846,1714590649259,-506.1379467,0.00053972,120]
[325213847,1714590649268,-500.0,0.00053972,120]
[325213848,1714590649277,-500.0,0.00053972,120]
[325213849,1714590649286,-500.0,0.00053972,120]
[325213850,1714590649296,-500.0,0.00053972,120]
[325213851,1714590649305,-500.0,0.00053972,120]
[325213852,1714590649314,-500.0,0.00053972,120]
[325213853,1714590649324,-629.86,0.00053972,120]
[325213854,1714590649347,-500.0,0.00053972,120]
[325213855,1714590649355,-500.0,0.00053972,120]
[325213856,1714590649364,-500.0,0.00053972,120]
[325213857,1714590649374,-501.87159403,0.00053972,120]
[325213858,1714590649383,-151.0,0.00053972,3]
[325213859,1714590649393,-646.53,0.00053972,120]
[325213860,1714590649402,-500.0,0.00053972,120]
[325213861,1714590649414,-330.1851767,0.00053972,120]
[325213862,1714590649424,-1000.0,0.00053972,120]
[325213863,1714590649434,-797.48,0.00053972,120]
[325213864,1714590649443,-997.55,0.00053972,120]
[325213865,1714590649452,-782.72,0.00053972,120]
[325213866,1714590649461,-151.0,0.00053972,7]
[325213867,1714590649470,-521.34,0.00053972,120]
[325213868,1714590649484,-500.0,0.00053972,120]
[325213869,1714590649492,-844.52,0.00053972,120]
[325213870,1714590649503,-180.66504651,0.00053972,120]
[325213871,1714590649511,-635.83915161,0.00053972,120]
[325213872,1714590649520,-500.0,0.00053972,120]
[325213873,1714590649529,-680.19,0.00053972,120]
[325213874,1714590649539,-151.0,0.00053972,7]
[325213875,1714590649549,-549.0,0.00053972,120]
[325213876,1714590649558,-203.79478529,0.00053972,120]
[325213877,1714590649567,-500.0,0.00053972,120]
[325213878,1714590649576,-507.26523388,0.00053972,120]
[325213879,1714590649585,-806.65,0.00053972,120]
[325213880,1714590649599,-500.0,0.00053972,120]
[325213881,1714590649608,-151.0,0.00053972,7]
[325213882,1714590649617,-500.0,0.00053972,120]
[325213883,1714590649626,-897.46,0.00053972,120]
[325213884,1714590649635,-500.0,0.00053972,120]
[325213885,1714590649644,-500.0,0.00053972,120]
[325213886,1714590649653,-151.0,0.00053972,7]
[325213887,1714590649662,-692.14,0.00053972,120]
[325213888,1714590649671,-500.0,0.00053972,120]
[325213889,1714590649680,-500.0,0.00053972,120]
[325213890,1714590649689,-501.93477733,0.00053972,120]
[325213891,1714590649698,-500.0,0.00053972,120]
[325213892,1714590649707,-500.0,0.00053972,120]
[325213893,1714590649717,-500.0,0.00053972,120]
[325213894,1714590649726,-929.98,0.00053972,120]
[325213895,1714590649735,-683.54,0.00053972,120]
[325213896,1714590649744,-504.37437888,0.00053972,120]
[325213897,1714590649754,-500.0,0.00053972,2]
[325213898,1714590649763,-151.0,0.00053972,7]
[325213899,1714590649773,-500.0,0.00053972,120]
[325213900,1714590649782,-500.87945794,0.00053972,120]
[325213901,1714590649792,-151.0,0.00053972,7]
[325213902,1714590649801,-1059.26,0.00053972,120]
[325213903,1714590649812,-500.0,0.00053972,120]
[325213904,1714590649821,-500.0,0.00053972,120]
[325213905,1714590649830,-500.0,0.00053972,120]
[325213906,1714590649844,-500.0,0.00053972,120]
[325213907,1714590649854,-500.0,0.00053972,120]
[325213908,1714590649863,-500.0,0.00053972,120]
[325213909,1714590649872,-500.0,0.00053972,2]
[325213910,1714590649882,-934.33,0.00053972,120]
[325213911,1714590649892,-500.0,0.00053972,120]
[325213912,1714590649901,-500.0,0.00053972,120]
[325213913,1714590649910,-500.0,0.00053972,120]
[325213914,1714590649919,-500.0,0.00053972,120]
[325213915,1714590649929,-500.0,0.00053972,120]
[325213916,1714590649938,-1745.21,0.00053972,120]
[325213917,1714590649946,-500.0,0.00053972,120]
[325213918,1714590649955,-500.0,0.00053972,120]
[325213919,1714590649965,-500.0,0.00053972,120]
[325213920,1714590649975,-500.0,0.00053972,120]
[325213921,1714590649984,-500.0,0.00053972,120]
[325213922,1714590649994,-778.84,0.00053972,120]
[325213923,1714590650003,-500.0,0.00053972,120]
[325213924,1714590650013,-500.0,0.00053972,120]
[325213925,1714590650022,-325.053855,0.00053972,7]
[325213926,1714590650032,-500.0,0.00053972,120]
[325213927,1714590650042,-325.053855,0.00053972,7]
[325213928,1714590650052,-500.60700252,0.00053972,120]
[325213929,1714590650062,-588.76,0.00053972,120]
[325213930,1714590650072,-500.0,0.00053972,120]
[325213931,1714590650081,-500.0,0.00053972,120]
[325213932,1714590650095,-500.0,0.00053972,120]
[325213933,1714590650105,-500.0,0.00053972,120]
[325213934,1714590650115,-558.34,0.00053972,120]
[325213935,1714590650124,-500.0,0.00053972,120]
[325213936,1714590650134,-500.0,0.00053972,120]
[325213937,1714590650143,-500.0,0.00053972,120]
[325213938,1714590650152,-500.0,0.00053972,120]
[325213939,1714590650161,-500.0,0.00053972,120]
[325213940,1714590650170,-238.074681,0.00053972,7]
[325213941,1714590650179,-500.0,0.00053972,120]
[325213942,1714590650188,-500.0,0.00053972,120]
[325213943,1714590650197,-500.0,0.00053972,120]
[325213944,1714590650207,-238.074681,0.00053972,7]
[325213945,1714590650217,-632.61,0.00053972,120]
[325213946,1714590650226,-500.0,0.00053972,120]
[325213947,1714590650236,-151.0,0.00053972,7]
[325213948,1714590650245,-500.0,0.00053972,120]
[325213949,1714590650254,-859.28,0.00053972,120]
[325213950,1714590650264,-500.0,0.00053972,120]
[325213951,1714590650273,-474.04326759,0.00053972,120]
[325213952,1714590650282,-500.0,0.00053972,120]
[325213953,1714590650292,-500.0,0.00053972,120]
[325213954,1714590650302,-1048.71,0.00053972,120]
[325213955,1714590650312,-500.0,0.00053972,120]
[325213956,1714590650322,-1038.61,0.00053972,120]
[325213957,1714590650333,-500.0,0.00053972,120]
[325213958,1714590650350,-500.0,0.00053972,120]
[325213959,1714590650359,-573.09157035,0.00053972,120]
[325213960,1714590650370,-160.775161,0.00053972,7]
[325213961,1714590650380,-300.0,0.00053972,2]
[325213962,1714590650389,-728.02,0.00053972,120]
[325213963,1714590650399,-500.0,0.00053972,120]
[325213964,1714590650408,-500.0,0.00053972,120]
[325213965,1714590650418,-500.0,0.00053972,120]
[325213966,1714590650429,-151.0,0.00053972,7]
[325213967,1714590650439,-160.775161,0.00053972,7]
[325213968,1714590650448,-151.0,0.00053972,7]
[325213969,1714590650457,-500.0,0.00053972,120]
[325213970,1714590650467,-500.0,0.00053972,120]
[325213971,1714590650476,-500.0,0.00053972,120]
[325213972,1714590650485,-151.0,0.00053972,7]
[325213973,1714590650496,-500.0,0.00053972,120]
[325213974,1714590650505,-500.0,0.00053972,120]
[325213975,1714590650514,-1022.32,0.00053972,120]
[325213976,1714590650524,-500.0,0.00053972,120]
[325213977,1714590650535,-1486.05,0.00053972,120]
[325213978,1714590650544,-500.0,0.00053972,120]
[325213979,1714590650553,-500.0,0.00053972,120]
[325213980,1714590650563,-945.1,0.00053972,120]
[325213981,1714590650572,-500.0,0.00053972,120]
[325213982,1714590650581,-500.0,0.00053972,120]
[325213983,1714590650595,-300.0,0.00053972,7]
[325213984,1714590650604,-528.52,0.00053972,120]
[325213985,1714590650615,-500.0,0.00053972,120]
[325213986,1714590650626,-500.0,0.00053972,120]
[325213987,1714590650635,-151.0,0.00053972,7]
[325213988,1714590650646,-151.0,0.00053972,7]
[325213989,1714590650656,-500.0,0.00053972,120]
[325213990,1714590650666,-151.0,0.00053972,7]
[325213991,1714590650675,-151.0,0.00053972,7]
[325213992,1714590650684,-500.0,0.00053972,120]
[325213993,1714590650694,-151.0,0.00053972,7]
[325213994,1714590650704,-151.0,0.00053972,7]
[325213995,1714590650714,-500.0,0.00053972,120]
[325213996,1714590650723,-500.0,0.00053972,120]
[325213997,1714590650732,-500.0,0.00053972,3]
[325213998,1714590650742,-500.0,0.00053972,120]
[325213999,1714590650751,-500.0,0.00053972,120]
[325214000,1714590650761,-3195.0,0.00053972,120]
[325214001,1714590650771,-500.0,0.00053972,120]
[325214002,1714590650781,-906.16,0.00053972,120]
[325214003,1714590650790,-550.08,0.00053972,120]
[325214004,1714590650800,-500.0,0.00053972,120]
[325214005,1714590650810,-1114.78,0.00053972,120]
[325214006,1714590650819,-3211.91,0.00053972,120]
[325214007,1714590650829,-500.0,0.00053972,120]
[325214008,1714590650842,-500.0,0.00053972,120]
[325214009,1714590650852,-151.0,0.00053972,7]
[325214010,1714590650862,-249.661069,0.00053972,7]
[325214011,1714590650872,-249.661069,0.00053972,7]
[325214012,1714590650881,-510.78427862,0.00053972,120]
[325214013,1714590650891,-500.0,0.00053972,120]
[325214014,1714590650901,-500.0,0.00053972,120]
[325214015,1714590650910,-249.661069,0.00053972,7]
[325214016,1714590650919,-249.661069,0.00053972,7]
[325214017,1714590650929,-746.4,0.00053972,120]
[325214018,1714590650939,-500.0,0.00053972,120]
[325214019,1714590650948,-500.0,0.00053972,120]
[325214020,1714590650958,-151.0,0.00053972,7]
[325214021,1714590650967,-151.0,0.00053972,7]
[325214022,1714590650976,-500.0,0.00053972,120]
[325214023,1714590650986,-616.87,0.00053972,120]
[325214024,1714590650995,-336.85300015,0.00053972,120]
[325214025,1714590651004,-500.0,0.00053972,120]
[325214026,1714590651014,-500.0,0.00053972,120]
[325214027,1714590651023,-693.46,0.00053972,120]
[325214028,1714590651034,-769.33,0.00053972,120]
[325214029,1714590651043,-335.29764675,0.00053972,120]
[325214030,1714590651053,-500.0,0.00053972,120]
[325214031,1714590651062,-500.0,0.00053972,120]
[325214032,1714590651073,-500.0,0.00053972,120]
[325214033,1714590651084,-500.0,0.00053972,120]
[325214034,1714590651098,-500.0,0.00053972,120]
[325214035,1714590651108,-151.0,0.00053972,7]
[325214036,1714590651119,-151.0,0.00053972,7]
[325214037,1714590651128,-500.0,0.00053972,120]
[325214038,1714590651139,-500.0,0.00053972,120]
[325214039,1714590651150,-500.0,0.00053972,120]
[325214040,1714590651161,-500.0,0.00053972,120]
[325214041,1714590651172,-500.0,0.00053972,120]
[325214042,1714590651182,-710.14,0.00053972,120]
[325214043,1714590651192,-500.0,0.00053972,120]
[325214044,1714590651206,-500.0,0.00053972,120]
[325214045,1714590651218,-372.66724936,0.00053972,120]
[325214046,1714590651229,-281.862295,0.00053972,7]
[325214047,1714590651239,-500.0,0.00053972,120]
[325214048,1714590651250,-687.72,0.00053972,120]
[325214049,1714590651260,-500.0,0.00053972,120]
[325214050,1714590651269,-500.0,0.00053972,120]
[325214051,1714590651279,-600.0,0.00053972,120]
[325214052,1714590651289,-1028.82,0.00053972,120]
[325214053,1714590651299,-865.76,0.00053972,120]
[325214054,1714590651308,-500.0,0.00053972,120]
[325214055,1714590651318,-500.0,0.00053972,120]
[325214056,1714590651330,-500.0,0.00053972,120]
[325214057,1714590651345,-151.0,0.00053972,7]
[325214058,1714590651355,-500.0,0.00053972,120]
[325214059,1714590651364,-151.016301,0.00053972,7]
[325214060,1714590651376,-500.0,0.00053972,120]
[325214061,1714590651386,-500.0,0.00053972,120]
[325214062,1714590651396,-460.416991,0.00053972,7]
[325214063,1714590651406,-460.416991,0.00053972,7]
[325214064,1714590651417,-1010.85,0.00053972,120]
[325214065,1714590651427,-500.0,0.00053972,120]
[325214066,1714590651437,-460.416991,0.00053972,7]
[325214067,1714590651447,-460.416991,0.00053972,7]
[325214068,1714590651457,-10948.05,0.00053972,120]